[Event "European Women-ch 2023"]
[Site "Petrovac"]
[Date "2023.03.27"]
[Round "9.5"]
[White "Toncheva, Nadya"]
[Black "Brunello, Marina"]
[Result "1-0"]
[ECO "B22"]
[WhiteElo "2192"]
[BlackElo "2346"]
[Annotator "TA"]
[PlyCount "77"]
[EventDate "2023.03.15"]
[EventType "swiss"]
[EventCountry "MNE"]
[SourceTitle "playchess.com"]
[Source "ChessBase"]
[SourceQuality "1"]
[TimeControl "40/5400+30:1800+30"]

{[%evp 13,77,1,18,0,10,12,14,28,25,15,27,11,15,7,24,12,33,33,55,29,43,55,40,42,66,55,127,123,116,89,164,182,215,217,206,197,198,156,156,179,195,187,248,252,385,362,377,0,315,316,298,179,248,159,650,643,629,627,2097,1949,5281,5222,4998,1116,1113,974]} 1. e4 {[%emt 0:00:03][%cal Be2e4,Be4e5][%mdl 32]} c5 {[%emt 0:00:14]} 2. c3 {[%emt 0:00:04]} Nf6 {[%emt 0:00:05]} 3. e5 {[%emt 0:00:03]} Nd5 {[%emt 0:00:06]} 4. Nf3 {[%emt 0:00:04]} e6 {[%emt 0:00:28]} 5. Bc4 {[%emt 0:00:05]} d6 {[%emt 0:00:03]} 6. d4 {[%emt 0:00:31]} cxd4 {[%emt 0:00:05]} 7. cxd4 {[%emt 0:00:06]} Be7 {[%emt 0:00:12]} 8. O-O {[%emt 0:00:06] B22: Sicilian: 2 c3.} O-O {[%emt 0:00:03]} 9. Qe2 {[%emt 0:00:10]} Nd7 {[%emt 0:00:07][%cal Bb8d7,Bd7b6,Bb6a4][%mdl 32]} 10. Bxd5 {[%emt 0:00:31] The position is equal.} exd5 {[%emt 0:00:07]} 11. Nc3 {[%emt 0:00:06][%cal Bb1c3,Bc3b5,Bb5d4,Bd4f5,Bf5d6][%mdl 32]} Nb6 {[%emt 0:02:21]} 12. Bf4 {[%emt 0:00:06] [#]} Be6 $146 {[%emt 0:05:22]} ({Predecessor:} 12... Re8 13. Rfe1 dxe5 14. Nxe5 Be6 15. Rac1 Rc8 16. Qb5 Bf5 17. h3 f6 18. Ng4 Qd7 {½-½ Grachev,A (2366)-Tsvetkov,A (2384) RUS-ch U20 Sochi 2022 (4)}) 13. Nb5 {[%emt 0:03:52][%cal Re5d6]} dxe5 {[%emt 0:03:20]} 14. dxe5 {[%emt 0:00:41]} a6 {[%emt 0:00:49]} 15. Nbd4 {[%emt 0:00:57]} Na4 {[%emt 0:08:15]} 16. Be3 {[%emt 0:04:56]} Bg4 {[%emt 0:09:02]} 17. h3 {[%emt 0:05:03]} Bh5 {[%emt 0:01:31]} 18. Nf5 {[%emt 0:03:55] Black must now prevent Qc2.} (18. g4 $5 Bg6 $8 19. Nf5 $11) 18... Re8 {[%emt 0:05:49] Black is weak on the dark squares} 19. Rad1 {[%emt 0:11:42]} Bf8 {[%emt 0:07:06]} (19... Rc8 $14) 20. g4 $16 {[%emt 0:03:31]} Bg6 {[%emt 0:00:03] [#]} 21. Nd6 $1 $36 {[%emt 0:02:48][%mdl 2048] White is really pushing. White is much more active.} Re6 {[%emt 0:08:59]} (21... Bxd6 $16 22. Rxd5 {[%mdl 64] Pin} Rc8) 22. Rxd5 $18 {[%emt 0:02:25]} (22. Nxb7 $6 Qb8 23. Rd4 Qxb7 $11) 22... Nb6 {[%emt 0:01:07]} 23. Bxb6 {[%emt 0:02:03]} (23. Nxb7 $2 {is the wrong capture.} Qxd5 24. Bxb6 Rxb6 $19) 23... Qxb6 {[%emt 0:00:08]} 24. Nd4 {[%emt 0:02:37]} Re7 {[%emt 0:06:03]} 25. N4f5 {[%emt 0:01:10] Excellent horsemanship.} Rc7 {[%emt 0:04:51]} 26. Rfd1 {[%emt 0:01:55]} h6 {[%emt 0:01:43]} 27. h4 {[%emt 0:06:54][%cal Bh3h4,Bh4h5][%mdl 32]} Qb4 {[%emt 0:03:11]} (27... Qc6 {was called for.} 28. h5 Bh7) 28. Ne3 {[%emt 0:06:23]} Rd8 {[%emt 0:06:39]} (28... Kh8 $142 29. b3 Qc3) 29. R5d4 {[%emt 0:00:40]} Qc5 {[%emt 0:00:43]} 30. Rd5 {[%emt 0:06:33]} (30. h5 $18 Bc2 31. R1d2) 30... Qc6 $2 {[%emt 0:00:27][%mdl 8192]} (30... Qb4 $1 $11 {and Black stays safe.}) 31. h5 {[%emt 0:01:40]} Bh7 {[%emt 0:01:08]} 32. Qd2 {[%emt 0:04:56]} Rcd7 {[%emt 0:02:48]} (32... b6 $142 33. a3 Qa4) 33. Qd4 {[%emt 0:03:19]} Be7 $2 {[%emt 0:04:44] This move loses the game for Black.} (33... f6 $16) 34. Ndf5 {[%emt 0:03:24] White is clearly winning.} Bxf5 {[%emt 0:02:01] [#]} 35. Nxf5 {[%emt 0:00:13][%cal Rd5d7]} Bc5 {[%emt 0:00:16]} (35... Rxd5 36. Nxe7+) 36. Rxd7 {[%emt 0:00:35]} ({Worse is} 36. Rxc5 Rxd4 37. Rxd4 Qxc5 $17) 36... Rxd7 {[%emt 0:00:03]} 37. Qxd7 {[%emt 0:00:25]} Qf3 {[%emt 0:00:04]} 38. Ne7+ {[%emt 0:01:37]} Bxe7 {[%emt 0:00:26]} 39. Qc8+ {[%emt 0:00:05] Weighted Error Value: White=0.28 (precise) /Black=0.54} 1-0

[Event "European Women-ch 2023"]
[Site "Petrovac"]
[Date "2023.03.27"]
[Round "9.5"]
[White "Walter, Ema"]
[Black "Allahverdiyeva, Ayan"]
[Result "1-0"]
[ECO "B52"]
[WhiteElo "2048"]
[BlackElo "2124"]
[Annotator "TA"]
[PlyCount "109"]
[EventDate "2023.03.15"]
[EventType "swiss"]
[EventCountry "MNE"]
[SourceTitle "playchess.com"]
[Source "ChessBase"]
[SourceQuality "1"]
[TimeControl "40/5400+30:1800+30"]

{[%evp 23,109,3,39,14,0,-16,0,-17,0,0,0,0,0,-10,-17,-17,9,-25,0,0,7,7,13,5,13,6,15,12,35,39,54,59,79,69,99,100,102,90,182,66,87,58,70,41,66,16,17,15,18,8,8,9,8,0,0,0,77,91,88,81,83,84,81,83,312,305,468,458,668,672,669,592,674,664,654,588,683,487,1261,1323,4627,3244,2392,2098,2379,2300,1636,1331]} 1. e4 {[%emt 0:01:36]} c5 {[%emt 0:01:45]} 2. Nf3 {[%emt 0:00:00]} d6 {[%emt 0:00:56]} 3. Bb5+ {[%emt 0:00:00]} Bd7 {[%emt 0:00:24]} 4. Bxd7+ {[%emt 0:00:00]} Qxd7 {[%emt 0:00:03]} 5. c4 {[%emt 0:00:00]} Nf6 {[%emt 0:00:31]} 6. Nc3 {[%emt 0:00:00]} g6 {[%emt 0:00:21]} 7. d4 {[%emt 0:00:00]} cxd4 {[%emt 0:00:03]} 8. Nxd4 {[%emt 0:00:00]} Bg7 {[%emt 0:00:02]} 9. f3 {[%emt 0:00:00]} O-O {[%emt 0:00:07]} 10. Be3 {[%emt 0:00:29]} Rc8 {[%emt 0:03:20]} 11. b3 {[%emt 0:01:02]} a6 {[%emt 0:03:03]} 12. O-O {[%emt 0:03:18]} Nc6 {[%emt 0:05:59]} 13. Na4 {[%emt 0:05:01] B52: Sicilian: Moscow Variation with 3...Bd7.} Qd8 {[%emt 0:00:23] Prevents Nb6.} 14. Rc1 {[%emt 0:10:49]} Nd7 {[%emt 0:01:13]} 15. Qd2 {[%emt 0:07:48] The position is equal.} Nxd4 {[%emt 0:03:37]} 16. Bxd4 {[%emt 0:00:06]} b5 {[%emt 0:00:00] [#]} 17. Bxg7 $146 {[%emt 0:07:11]} ({Predecessor:} 17. cxb5 axb5 18. Nb2 Rxa2 19. Bxg7 Kxg7 20. Rxc8 Qxc8 21. Rc1 Qa6 22. Rc2 Ra3 23. Qc3+ {0-1 Gawiec,P (2024)-Calvo,R (2219) FRA Accession 020 email 2014}) 17... Kxg7 {[%emt 0:00:07]} 18. cxb5 {[%emt 0:00:49]} axb5 {[%emt 0:00:27]} 19. Nc3 {[%emt 0:00:16]} Kg8 {[%emt 0:15:27]} 20. Qg5 {[%emt 0:15:35]} Rc5 {[%emt 0:17:28]} 21. Nd5 {[%emt 0:05:40][%cal Bc3d5,Bd5b4,Bb4d3][%mdl 32]} e6 {[%emt 0:00:13]} 22. Qxd8+ {[%emt 0:01:56]} Rxd8 {[%emt 0:00:03]} 23. Nb4 {[%emt 0:00:15]} Kf8 {[%emt 0:07:47]} 24. Nd3 {[%emt 0:02:03]} Rxc1 {[%emt 0:00:49]} 25. Rxc1 $11 {[%emt 0:00:11][%mdl 4096] Endgame KRN-KRN} Ra8 {[%emt 0:00:32]} (25... d5 $5 {[%cal Rd5e4]}) 26. Rc7 {[%emt 0:02:51]} Ke8 {[%emt 0:06:22]} 27. Nb4 {[%emt 0:00:42]} f6 {[%emt 0:01:01]} 28. Kf2 {[%emt 0:04:39]} Rb8 {[%emt 0:00:28]} 29. Rc6 {[%emt 0:06:46] White is more active.} Ke7 {[%emt 0:03:26]} 30. Ke3 {[%emt 0:01:32]} Rb6 {[%emt 0:01:50] [#]} (30... f5 $16 {was worth a try.}) 31. Rc8 {[%emt 0:01:26]} ({White should play} 31. Rxb6 $1 $18 Nxb6 32. Nc6+ Kd7 33. Nd4) 31... h5 {[%emt 0:01:28]} 32. f4 {[%emt 0:07:39][%cal Of4f5]} f5 {[%emt 0:00:29]} 33. Nc6+ {[%emt 0:05:46]} Kf7 {[%emt 0:00:37]} 34. e5 {[%emt 0:02:17]} (34. Rc7 $14 Ke8 35. exf5) 34... dxe5 {[%emt 0:00:36]} 35. fxe5 {[%emt 0:00:26] With the idea Rc7.} g5 $1 {[%emt 0:00:24]} 36. Kd4 {[%emt 0:01:22]} b4 {[%emt 0:02:32]} 37. g3 {[%emt 0:05:28]} Rb5 {[%emt 0:03:10]} 38. Kc4 {[%emt 0:01:51]} Rd5 {[%emt 0:00:09] [#] White must now prevent ...Nb6+.} 39. Rc7 {[%emt 0:01:41]} f4 {[%emt 0:11:31]} (39... Rd1 $11 40. Nd8+ (40. Kxb4 f4 $15) 40... Ke7 41. Nc6+ Kf7 42. Nd8+ (42. Kxb4 f4 $15) 42... Ke7 43. Nc6+ Kf7) 40. gxf4 $16 {[%emt 0:00:00]} (40. Kxb4 $2 f3 41. Na5 Rd1 $19) 40... gxf4 {[%emt 0:00:00]} 41. Nxb4 {[%emt 0:13:38]} (41. Kxb4 $2 {too greedy.} f3 42. Na5 f2 $19) 41... Rd1 {[%emt 0:00:11] Threatens to win with ...Rc1+.} 42. Nd3 {[%emt 0:01:42] Wards off Rc1+} Ke8 {[%emt 0:00:04] aiming for ...f3.} 43. Kd4 {[%emt 0:02:58]} (43. Nxf4 $2 {perishes.} Rc1+ 44. Kd4 Rxc7 $19) 43... Nb6 $2 {[%emt 0:03:09] This costs Black the game.} (43... Kd8 $2 44. Rc2 $16) (43... Rd2 $16) 44. Rc6 $18 {[%emt 0:04:41][%csl LRb6,LRe6]} Nd5 {[%emt 0:04:42]} (44... Nd7 $142) 45. Rxe6+ {[%emt 0:00:42] White is clearly winning.} Kf7 {[%emt 0:00:01]} (45... Ne7 $142 46. h3 h4) 46. Kxd5 {[%emt 0:00:19] Hoping for Rf6+.} Rxd3+ {[%emt 0:00:05] KR-KR} 47. Ke4 {[%emt 0:00:22]} Rd2 {[%emt 0:00:12]} 48. Rf6+ {[%emt 0:00:34]} Ke7 {[%emt 0:00:05]} 49. a4 {[%emt 0:00:48][%cal Ba2a4,Ba4a5][%mdl 32]} Rb2 {[%emt 0:00:20]} 50. Rb6 {[%emt 0:00:14] And now a5 would win.} Rf2 {[%emt 0:00:04]} (50... Rxh2 $142 51. a5 Ra2) 51. a5 {[%emt 0:01:56]} Rf1 {[%emt 0:00:08]} 52. b4 {[%emt 0:01:03]} f3 {[%emt 0:00:04]} 53. Ke3 {[%emt 0:00:13]} Kd7 {[%emt 0:01:07]} 54. e6+ {[%emt 0:00:51]} Kc7 {[%emt 0:02:32]} 55. h4 {[%emt 0:00:35] Weighted Error Value: White=0.17 (very precise) /Black=0.39} 1-0

[Event "European Women-ch 2023"]
[Site "Petrovac"]
[Date "2023.03.27"]
[Round "9.6"]
[White "Socko, Monika"]
[Black "Melia, Salome"]
[Result "1/2-1/2"]
[ECO "D30"]
[WhiteElo "2432"]
[BlackElo "2366"]
[Annotator "TA"]
[PlyCount "80"]
[EventDate "2023.03.15"]
[EventType "swiss"]
[EventCountry "MNE"]
[SourceTitle "playchess.com"]
[Source "ChessBase"]
[SourceQuality "1"]
[TimeControl "40/5400+30:1800+30"]

{[%evp 9,80,29,45,50,42,41,39,18,13,15,16,0,0,0,10,0,1,-27,14,2,28,9,38,37,32,0,0,-27,-41,-33,-25,-24,-33,-148,-137,-157,-142,-262,-268,-257,-261,-598,-603,-595,-592,-576,-558,-1100,-1056,-29992,-29993,-29993,0,0,0,-29993,-29994,-29994,-29995,-29995,-29994,-29994,-29995,-29995,-29996,-29996,-29997,-29997,-29995,-29996,-29997,-29997,-43]} 1. d4 {[%emt 0:00:13]} d5 {[%emt 0:00:17]} 2. c4 {[%emt 0:00:04]} e6 {[%emt 0:00:09]} 3. Nf3 {[%emt 0:00:08]} h6 {[%emt 0:00:51]} 4. g3 {[%emt 0:02:32]} Nf6 {[%emt 0:00:37]} 5. Bg2 {[%emt 0:00:05]} Bd6 {[%emt 0:00:20]} 6. O-O {[%emt 0:00:48] D30: Queen's Gambit Declined: Systems without Nc3.} O-O {[%emt 0:00:30]} 7. Nc3 {[%emt 0:00:32]} Nc6 {[%emt 0:01:06]} 8. c5 {[%emt 0:12:28] White is slightly better.} Be7 {[%emt 0:00:09]} 9. a3 {[%emt 0:00:10]} Ne4 {[%emt 0:15:11] [#]} 10. Qd3 $146 {[%emt 0:04:25]} ({Predecessor:} 10. Qc2 f5 11. b4 Bf6 12. Rd1 Bd7 13. Bb2 Qe7 14. e3 b6 15. Rab1 Rfb8 16. Bf1 bxc5 17. bxc5 {½-½ Standke,W (2513)-Rynkevich,S (2378) EU-chT8 fin email 2012 [5]}) 10... f5 {[%emt 0:00:20]} 11. b4 {[%emt 0:03:27]} Bf6 {[%emt 0:01:32]} 12. Bb2 {[%emt 0:20:10]} Bd7 {[%emt 0:13:35]} 13. Rad1 {[%emt 0:00:00]} Be8 {[%emt 0:02:40]} (13... b5 $5 {[%cal Ra7a5]}) 14. e3 {[%emt 0:00:27]} a6 {[%emt 0:08:45]} 15. Ne2 {[%emt 0:01:08]} b6 {[%emt 0:04:54]} 16. Nf4 {[%emt 0:06:10]} Qc8 {[%emt 0:00:26]} 17. cxb6 {[%emt 0:02:20]} cxb6 {[%emt 0:01:07] Strongly threatening ...g5.} 18. Rc1 {[%emt 0:01:51]} g5 {[%emt 0:02:02]} 19. Ne2 {[%emt 0:00:04]} Qb8 {[%emt 0:03:08] Prevents Ne5.} 20. Rc2 {[%emt 0:03:03]} Ne7 {[%emt 0:08:38]} (20... g4 21. Nd2 $11) 21. Ne5 {[%emt 0:11:52]} (21. Nc3 $15) 21... Bb5 $17 {[%emt 0:02:16]} 22. Qb3 {[%emt 0:04:08]} Bxe5 {[%emt 0:08:36]} 23. Bxe4 {[%emt 0:02:01]} (23. dxe5 $17 {was forced.} Bc4 24. Rxc4) 23... fxe4 $19 {[%emt 0:00:23]} ({Wrong is} 23... Bxg3 $2 24. Bd3 Bxd3 25. Qxd3 Bxh2+ 26. Kg2 $19) 24. dxe5 {[%emt 0:00:05] [#] White is weak on the light squares} Qe8 $1 {[%emt 0:03:54]} 25. Qa2 $2 {[%emt 0:03:24]} (25. Rd2 {is more resistant.}) 25... Qh5 {[%emt 0:03:31]} 26. Bd4 {[%emt 0:00:53]} Ng6 {[%emt 0:05:09][%cal Og6h4] ...Nh4! is the strong threat.} 27. Rfc1 {[%emt 0:02:52]} Qf3 {[%emt 0:03:41]} 28. Nc3 {[%emt 0:03:27][%cal Oc3d5]} Bc4 {[%emt 0:00:08]} 29. Qb2 {[%emt 0:00:04] [#]} Nh4 $1 {[%emt 0:04:27][%mdl 512]} 30. gxh4 {[%emt 0:00:16]} Qg4+ {[%emt 0:00:40]} 31. Kh1 {[%emt 0:00:01] And now f4 would win.} Qf3+ $40 {[%emt 0:00:10][%mdl 128] Black is up to no good.} 32. Kg1 {[%emt 0:00:01]} gxh4 {[%emt 0:00:22] Black mates.} 33. h3 {[%emt 0:00:57]} Kh8 {[%emt 0:02:05]} 34. Nxe4 {[%emt 0:01:03]} Rg8+ {[%emt 0:02:12]} 35. Ng3 {[%emt 0:00:58]} hxg3 {[%emt 0:00:07]} 36. fxg3 {[%emt 0:00:08]} Rxg3+ {[%emt 0:00:10]} 37. Rg2 {[%emt 0:00:04]} Rag8 {[%emt 0:02:55]} ({Inferior is} 37... Rxh3 38. Qf2 $17) ({Don't go for} 37... Be2 $2 38. Qxe2 Rxg2+ 39. Qxg2 $19) 38. Rcc2 {[%emt 0:01:18]} Qf1+ {[%emt 0:00:44]} 39. Kh2 {[%emt 0:00:03] [#]} Rxh3+ $3 {[%emt 0:00:26][%mdl 576] Decoy} 40. Kxh3 {[%emt 0:00:00]} Qh1+ {[%emt 0:00:00] A fantastic game!   Weighted Error Value: White=0.63/Black=0.14 (very precise)} 1/2-1/2

[Event "European Women-ch 2023"]
[Site "Petrovac"]
[Date "2023.03.27"]
[Round "9.6"]
[White "Zhukova, Natalia"]
[Black "Chelushkina, Irina"]
[Result "1/2-1/2"]
[ECO "D30"]
[WhiteElo "2322"]
[BlackElo "2207"]
[Annotator "TA"]
[PlyCount "131"]
[EventDate "2023.03.15"]
[EventType "swiss"]
[EventCountry "MNE"]
[SourceTitle "playchess.com"]
[Source "ChessBase"]
[SourceQuality "1"]
[TimeControl "40/5400+30:1800+30"]

{[%evp 9,131,37,39,31,43,52,56,17,20,22,20,13,31,45,52,8,15,5,31,19,38,0,12,-56,-41,-37,-23,-25,-25,-34,-21,-18,-18,-31,10,0,0,-29,56,38,40,0,0,0,0,0,0,0,0,0,62,-85,-75,-57,-69,-571,-533,-1055,-1001,-1029,-655,-637,-643,-641,-636,-628,-628,-612,-613,-611,-583,-629,-629,-627,-614,-604,-559,-606,-513,-472,-72,-255,0,0,0,0,0,0,0,0,0,0,0,0,0,0,0,0,0,0,0,0,0,0,0,0,0,0,0,0,0,0,0,0,0,-4641,0,0,0,0,0,0,0,0]} 1. Nf3 {[%emt 0:00:09]} Nf6 {[%emt 0:00:54]} 2. c4 {[%emt 0:00:35]} e6 {[%emt 0:02:13]} 3. d4 {[%emt 0:01:26]} d5 {[%emt 0:00:34]} 4. Bg5 {[%emt 0:01:26]} a6 {[%emt 0:00:21]} 5. e3 {[%emt 0:02:19]} h6 {[%emt 0:06:07]} 6. Bh4 {[%emt 0:00:29] [#] D30: Queen's Gambit Declined: Systems without Nc3.} g5 $146 {[%emt 0:03:40]} ({Predecessor:} 6... Be7 7. Nc3 dxc4 8. Bxc4 b5 9. Bd3 Bb7 10. Bxf6 gxf6 11. Be4 Bxe4 12. Nxe4 f5 {0-1 Bukavshin,I (2517)-Socko,B (2636) Moscow op-A 2012 (5)}) 7. Bg3 {[%emt 0:00:27]} Ne4 {[%emt 0:00:01]} 8. Nfd2 {[%emt 0:13:19] aiming for Nxe4. White is slightly better.} Nxg3 {[%emt 0:04:48]} 9. hxg3 {[%emt 0:00:07]} Bg7 {[%emt 0:00:05][%cal Oc7c5]} 10. Nc3 {[%emt 0:00:17]} Nc6 {[%emt 0:04:18]} 11. Be2 {[%emt 0:09:08]} Ne7 {[%emt 0:02:21]} 12. Bf3 {[%emt 0:06:32]} c6 {[%emt 0:01:11]} 13. Qb3 {[%emt 0:08:37]} b5 {[%emt 0:01:10]} 14. cxd5 {[%emt 0:17:30]} exd5 {[%emt 0:01:59]} 15. g4 {[%emt 0:09:31]} Be6 {[%emt 0:13:17][%cal Oc6c5]} 16. Nf1 {[%emt 0:01:53]} (16. Qd1 $11) 16... Qd7 {[%emt 0:16:15]} 17. Qd1 {[%emt 0:11:18]} O-O {[%emt 0:00:26]} (17... Rc8 $5 {[%cal Rc6c5]}) 18. Ng3 {[%emt 0:03:34]} f5 {[%emt 0:00:10]} 19. gxf5 {[%emt 0:00:22]} Nxf5 {[%emt 0:00:06]} 20. Nxf5 {[%emt 0:00:57]} Bxf5 {[%emt 0:00:11]} 21. Bh5 {[%emt 0:05:15]} Qe7 {[%emt 0:00:22]} 22. O-O {[%emt 0:00:32]} Rad8 {[%emt 0:00:42]} 23. a4 {[%emt 0:01:27]} Rd6 {[%emt 0:05:23]} ({Better is} 23... b4 $11 24. Ne2 c5) 24. axb5 {[%emt 0:00:20]} axb5 {[%emt 0:00:05]} 25. Bg4 {[%emt 0:03:49]} Bxg4 {[%emt 0:03:26]} 26. Qxg4 {[%emt 0:00:02]} h5 {[%emt 0:00:26]} 27. Qxh5 {[%emt 0:01:38]} Rh6 {[%emt 0:00:09][%cal Bd6h6,Bh6h4,Bh4h1,Bh1f1,Bf1e1,Be1e3][%mdl 32]} 28. Qg4 {[%emt 0:00:22]} Rh4 {[%emt 0:00:26]} 29. Qg3 {[%emt 0:00:19]} Qf6 {[%emt 0:10:41]} (29... Bf6 $11) 30. Ra7 {[%emt 0:01:09]} (30. Ne2 $1 $14) 30... Qh6 $1 $17 {[%emt 0:02:52][%csl Gh6][%cal Rh4h1]} 31. f3 {[%emt 0:00:03]} g4 $1 $40 {[%emt 0:02:17][%mdl 128] Black mounts an attack.} 32. f4 $2 {[%emt 0:00:31][%mdl 8192] [#]} (32. fxg4 $2 Rh1#) (32. Rxg7+ $15 Kxg7 33. Kf2) 32... Bxd4 $1 $19 {[%emt 0:01:48][%mdl 512]} 33. exd4 {[%emt 0:01:06] Ne2 would be deadly.} (33. Ra8 Bxe3+) 33... Rh1+ {[%emt 0:00:15]} 34. Kf2 {[%emt 0:00:00]} Qxf4+ {[%emt 0:00:54]} 35. Qxf4 {[%emt 0:00:09]} Rxf4+ {[%emt 0:00:04][%cal Bf8f4,Bf4d4,Bd4d1][%mdl 32]} 36. Kg3 {[%emt 0:01:05]} Rhxf1 {[%emt 0:00:36][%mdl 4096] Endgame KRR-KRN} 37. Rc7 {[%emt 0:00:26]} b4 {[%emt 0:03:26]} 38. Na4 {[%emt 0:00:29]} Rxd4 {[%emt 0:01:02]} 39. Rxc6 {[%emt 0:00:15]} Re1 {[%emt 0:01:08]} 40. Nb6 {[%emt 0:00:00]} Re3+ {[%emt 0:00:00]} 41. Kh4 {[%emt 0:02:34]} g3+ {[%emt 0:06:31]} 42. Kh3 {[%emt 0:02:30]} Rd1 {[%emt 0:03:41]} 43. Rd6 {[%emt 0:02:34]} d4 {[%emt 0:00:24]} 44. Nd5 {[%emt 0:00:32]} Rh1+ {[%emt 0:02:58]} (44... Rb3 $142 45. Rd7 Kf8) 45. Kg4 {[%emt 0:00:06] [#]} Kf7 $2 {[%emt 0:00:31]} 46. Nxe3 $11 {[%emt 0:02:17]} dxe3 {[%emt 0:02:05] KR-KR} 47. Kf3 {[%emt 0:00:12]} Rb1 {[%emt 0:00:53]} 48. Rd3 {[%emt 0:18:52]} e2 {[%emt 0:03:45][%mdl 64] Decoy} 49. Kxe2 {[%emt 0:00:05]} Rxb2+ {[%emt 0:00:02]} 50. Kf3 {[%emt 0:01:30]} Ra2 {[%emt 0:01:54]} 51. Rd7+ {[%emt 0:00:37]} Ke6 {[%emt 0:07:21]} 52. Rb7 {[%emt 0:00:07]} Ra3+ {[%emt 0:00:37]} 53. Ke4 {[%emt 0:00:58]} Rb3 {[%emt 0:00:02]} 54. Rb6+ {[%emt 0:00:17]} Kd7 {[%emt 0:00:25]} 55. Kf4 {[%emt 0:02:05]} Kc7 {[%emt 0:00:12]} 56. Rb5 {[%emt 0:00:02]} Kc6 {[%emt 0:00:07]} 57. Rb8 {[%emt 0:00:04]} Kc5 {[%emt 0:01:40]} 58. Rc8+ {[%emt 0:00:03]} Kd4 {[%emt 0:02:54]} 59. Rb8 {[%emt 0:00:03]} Kc4 {[%emt 0:00:11]} 60. Rc8+ {[%emt 0:00:13]} Kd3 {[%emt 0:02:15] ...Rc3 is the strong threat.} 61. Kxg3 {[%emt 0:00:03]} Rc3 {[%emt 0:00:07]} 62. Rb8 {[%emt 0:01:06][%mdl 8192] [#]} (62. Rd8+ $11 Kc2+ 63. Kf4) 62... b3 $2 {[%emt 0:00:05]} (62... Rc4 $1 $19 {( -> ...Kc2)} 63. Kf3 Kc2) 63. Kf4 {[%emt 0:00:34] The position is equal.} Rc4+ {[%emt 0:01:50]} 64. Kf5 {[%emt 0:00:04]} Rc5+ {[%emt 0:00:08]} 65. Kf6 {[%emt 0:01:29]} Rc6+ {[%emt 0:00:53]} (65... Kc4 $5 {[%cal Rc5b5]} 66. Rxb3 Kxb3 $11) 66. Kf5 {[%emt 0:00:05] Weighted Error Value: White=0.60/Black=0.24 (precise)} 1/2-1/2

[Event "European Women-ch 2023"]
[Site "Petrovac"]
[Date "2023.03.27"]
[Round "9.6"]
[White "Lomaia, Diana"]
[Black "Tsirulnik, Maritsa"]
[Result "1-0"]
[ECO "E21"]
[WhiteElo "1950"]
[BlackElo "2121"]
[Annotator "TA"]
[PlyCount "47"]
[EventDate "2023.03.15"]
[EventType "swiss"]
[EventCountry "MNE"]
[SourceTitle "playchess.com"]
[Source "ChessBase"]
[SourceQuality "1"]
[TimeControl "40/5400+30:1800+30"]

{[%evp 11,47,7,5,0,7,-1,32,24,24,-9,137,123,152,153,147,159,392,205,185,167,389,348,474,324,552,606,638,610,699,683,653,636,592,480,683,684,1015,1009]} 1. d4 {[%emt 0:00:03]} Nf6 {[%emt 0:00:05]} 2. c4 {[%emt 0:00:08]} e6 {[%emt 0:00:05]} 3. Nc3 {[%emt 0:00:05]} Bb4 {[%emt 0:00:06]} 4. Nf3 {[%emt 0:00:08]} b6 {[%emt 0:00:08]} 5. Qb3 {[%emt 0:00:20]} c5 {[%emt 0:00:10]} 6. dxc5 {[%emt 0:00:49]} bxc5 {[%emt 0:00:08]} 7. g3 {[%emt 0:00:37] E21: Nimzo-Indian: 4 Nf3.} Nc6 {[%emt 0:00:11]} 8. Bg2 {[%emt 0:01:00]} Ba6 {[%emt 0:00:24]} (8... O-O $5 {[%cal Rc8a6]}) 9. O-O {[%emt 0:09:34] White is slightly better.} O-O {[%emt 0:00:27]} 10. Na4 {[%emt 0:14:11] [#] aiming for a3.} (10. Bf4 $5) 10... Na5 $146 {[%emt 0:12:08]} (10... d5 $11) ({Predecessor:} 10... d5 11. a3 Bxc4 12. Qc2 Ba5 13. b3 Bb5 14. Nxc5 Rc8 15. Bb2 Bb6 16. b4 Re8 {1-0 Litynska,M (2340)-Zatonskih,A (2340) ROM-chT Sovata 1998 (1)}) 11. Qc2 $16 {[%emt 0:05:45]} Bxc4 {[%emt 0:23:42] [#]} 12. Ne5 $1 {[%emt 0:04:43][%csl LRa8,LRc4][%cal Og2a8]} d5 {[%emt 0:30:46]} 13. b3 {[%emt 0:05:56] White is more active.} Qb8 $2 {[%emt 0:04:08] This costs Black the game.} (13... Ba6 $16 {was called for.}) 14. Bf4 {[%emt 0:04:44]} (14. Nxc4 $142 Nc6 15. a3) 14... Ba6 $18 {[%emt 0:04:19]} 15. a3 {[%emt 0:21:15]} ({Worse is} 15. Nxc5 Qb5 16. Nxa6 Qxa6 $14) 15... Rc8 $2 {[%emt 0:03:20]} (15... g5 $2 16. Nd7 $18 (16. axb4 gxf4 17. Nxc5 Qxe5 $16) (16. axb4 gxf4 17. Nxc5 Qxe5 $16)) (15... Bd2) 16. axb4 {[%emt 0:07:47]} cxb4 {[%emt 0:00:43]} 17. Qb2 {[%emt 0:03:05]} ({Weaker is} 17. Nc5 Qb5 18. Ned3 Ne4 $18) 17... Nh5 $2 {[%emt 0:01:40] [#]} (17... Qb7 {keeps fighting.} 18. Rfc1 Qe7) 18. Nc6 $1 {[%emt 0:01:35][%mdl 576] Discovered Attack. White is clearly winning.} Qb5 {[%emt 0:01:30]} (18... Nxf4 19. Nxb8) 19. Ne7+ {[%emt 0:00:28]} Kf8 {[%emt 0:02:02]} 20. Nxc8 {[%emt 0:00:33]} Nxf4 {[%emt 0:00:06]} 21. gxf4 {[%emt 0:00:18] And now Nd6 would win.} Rxc8 {[%emt 0:00:27]} 22. Bf3 {[%emt 0:05:14]} Rd8 {[%emt 0:01:03]} (22... Qb8 $142 23. f5 Qd6 24. fxe6 fxe6) 23. Rfc1 {[%emt 0:01:09] Rc5 would be deadly.} Qb8 {[%emt 0:01:04]} 24. Nc5 {[%emt 0:00:31][%csl LRa5,LRa6] Weighted Error Value: White=0.36/Black=0.92} 1-0